[Event "Titled Tuesday Blitz July 4 Early 2023"]
[White "Kukreja Sankalp"]
[Black "Mamedov, Edgar"]
[WhiteFideId "45027676"]
[BlackFideId "13739980"]
[WhiteElo "2410"]
[BlackElo "2561"]
[Result "1-0"]
[Round "8"]
[TimeControl "180+2"]
[Date "2023.07.04"]
[WhiteClock "0:00:07"]
[BlackClock "0:00:05"]
[Board "87"]

1. e4 {[%clk 0:02:57]}  c5 {[%clk 0:02:58]} 2. Nf3 {[%clk 0:02:57]}  e6 {[%clk 0:02:56]} 3. d4 {[%clk 0:02:50]}  cxd4 {[%clk 0:02:55]} 4. Nxd4 {[%clk 0:02:50]}  Nf6 {[%clk 0:02:55]} 5. Bd3 {[%clk 0:02:47]}  Nc6 {[%clk 0:02:49]} 6. Nxc6 {[%clk 0:02:45]}  bxc6 {[%clk 0:02:49]} 7. O-O {[%clk 0:02:43]}  d5 {[%clk 0:02:49]} 8. e5 {[%clk 0:02:40]}  Nd7 {[%clk 0:02:46]} 9. f4 {[%clk 0:02:38]}  Ba6 {[%clk 0:02:42]} 10. Kh1 {[%clk 0:02:20]}  Bxd3 {[%clk 0:02:38]} 11. cxd3 {[%clk 0:02:21]}  Be7 {[%clk 0:02:35]} 12. d4 {[%clk 0:02:19]}  O-O {[%clk 0:02:35]} 13. f5 {[%clk 0:02:18]}  exf5 {[%clk 0:02:30]} 14. Rxf5 {[%clk 0:02:19]}  f6 {[%clk 0:02:05]} 15. e6 {[%clk 0:01:53]}  Nb6 {[%clk 0:01:56]} 16. Nc3 {[%clk 0:01:50]}  Nc4 {[%clk 0:01:55]} 17. Rh5 {[%clk 0:01:43]}  g6 {[%clk 0:01:43]} 18. Rh3 {[%clk 0:01:36]}  f5 {[%clk 0:01:33]} 19. Qe2 {[%clk 0:01:29]}  Nd6 {[%clk 0:01:27]} 20. Qe3 {[%clk 0:01:28]}  Bf6 {[%clk 0:01:11]} 21. Qh6 {[%clk 0:00:59]}  Qe7 {[%clk 0:01:04]} 22. Bf4 {[%clk 0:00:58]}  Ne4 {[%clk 0:01:01]} 23. Nxe4 {[%clk 0:00:57]}  dxe4 {[%clk 0:00:59]} 24. Bd6 {[%clk 0:00:57]}  Qg7 {[%clk 0:00:53]} 25. Bxf8 {[%clk 0:00:52]}  Rxf8 {[%clk 0:00:52]} 26. Qxg7+ {[%clk 0:00:52]}  Bxg7 {[%clk 0:00:43]} 27. Rc1 {[%clk 0:00:49]}  Bxd4 {[%clk 0:00:35]} 28. Rxc6 {[%clk 0:00:49]}  e3 {[%clk 0:00:24]} 29. e7 {[%clk 0:00:18]}  Re8 {[%clk 0:00:24]} 30. Re6 {[%clk 0:00:18]}  f4 {[%clk 0:00:24]} 31. Re4 {[%clk 0:00:18]}  Bb6 {[%clk 0:00:23]} 32. Kg1 {[%clk 0:00:12]}  g5 {[%clk 0:00:20]} 33. Kf1 {[%clk 0:00:12]}  Kg7 {[%clk 0:00:16]} 34. Ke2 {[%clk 0:00:11]}  Kg6 {[%clk 0:00:15]} 35. Re6+ {[%clk 0:00:11]}  Kf5 {[%clk 0:00:15]} 36. Rhh6 {[%clk 0:00:09]}  g4 {[%clk 0:00:12]} 37. Rhf6+ {[%clk 0:00:08]}  Kg5 {[%clk 0:00:11]} 38. Rf8 {[%clk 0:00:06]}  f3+ {[%clk 0:00:11]} 39. gxf3 {[%clk 0:00:06]}  gxf3+ {[%clk 0:00:05]} 40. Kxf3 {[%clk 0:00:07]} 1-0


[Site "https://www.chess.com"]

[Event "Titled Tuesday Blitz July 4 Early 2023"]
[White "Glavina, Pablo"]
[Black "Ismagilov, Damir"]
[WhiteFideId "100234"]
[BlackFideId "34199982"]
[WhiteElo "2395"]
[BlackElo "2560"]
[Result "1-0"]
[Round "8"]
[TimeControl "180+2"]
[Date "2023.07.04"]
[WhiteClock "0:00:25"]
[BlackClock "0:00:00"]
[Board "88"]

1. c4 {[%clk 0:02:49]}  c5 {[%clk 0:02:58]} 2. Nf3 {[%clk 0:02:48]}  Nc6 {[%clk 0:02:58]} 3. d4 {[%clk 0:02:49]}  cxd4 {[%clk 0:02:58]} 4. Nxd4 {[%clk 0:02:50]}  e6 {[%clk 0:02:55]} 5. Nc3 {[%clk 0:02:50]}  Nf6 {[%clk 0:02:53]} 6. g3 {[%clk 0:02:50]}  Bb4 {[%clk 0:02:41]} 7. Bg2 {[%clk 0:02:49]}  O-O {[%clk 0:02:36]} 8. O-O {[%clk 0:02:49]}  Rb8 {[%clk 0:02:28]} 9. Bf4 {[%clk 0:02:47]}  Ra8 {[%clk 0:02:12]} 10. Ndb5 {[%clk 0:02:48]}  e5 {[%clk 0:02:09]} 11. Bg5 {[%clk 0:02:44]}  Bxc3 {[%clk 0:02:04]} 12. Nxc3 {[%clk 0:02:42]}  h6 {[%clk 0:02:03]} 13. Bxf6 {[%clk 0:02:42]}  Qxf6 {[%clk 0:02:04]} 14. Nd5 {[%clk 0:02:42]}  Qd8 {[%clk 0:02:01]} 15. Qd2 {[%clk 0:02:42]}  d6 {[%clk 0:02:01]} 16. Rfd1 {[%clk 0:02:42]}  Be6 {[%clk 0:01:56]} 17. Rac1 {[%clk 0:02:41]}  Rc8 {[%clk 0:01:52]} 18. b3 {[%clk 0:02:40]}  Qd7 {[%clk 0:01:43]} 19. Nc3 {[%clk 0:02:30]}  Rfd8 {[%clk 0:01:26]} 20. Ne4 {[%clk 0:02:27]}  Nd4 {[%clk 0:01:22]} 21. e3 {[%clk 0:02:23]}  Nf5 {[%clk 0:01:22]} 22. Qb4 {[%clk 0:02:16]}  b6 {[%clk 0:01:19]} 23. Rd2 {[%clk 0:02:08]}  d5 {[%clk 0:01:14]} 24. Rcd1 {[%clk 0:02:00]}  d4 {[%clk 0:01:14]} 25. Nc3 {[%clk 0:01:27]}  Qe8 {[%clk 0:00:55]} 26. exd4 {[%clk 0:01:07]}  Nxd4 {[%clk 0:00:55]} 27. Nd5 {[%clk 0:01:03]}  Bxd5 {[%clk 0:00:53]} 28. Bxd5 {[%clk 0:01:01]}  Rc7 {[%clk 0:00:50]} 29. Kg2 {[%clk 0:00:55]}  Kh8 {[%clk 0:00:42]} 30. Rd3 {[%clk 0:00:48]}  f6 {[%clk 0:00:41]} 31. Qd2 {[%clk 0:00:47]}  Qh5 {[%clk 0:00:39]} 32. Qe3 {[%clk 0:00:44]}  Qf5 {[%clk 0:00:38]} 33. Be4 {[%clk 0:00:43]}  Qe6 {[%clk 0:00:37]} 34. Bd5 {[%clk 0:00:43]}  Qf5 {[%clk 0:00:37]} 35. Be4 {[%clk 0:00:43]}  Qg5 {[%clk 0:00:38]} 36. f4 {[%clk 0:00:37]}  Qg4 {[%clk 0:00:26]} 37. Bf3 {[%clk 0:00:30]}  Qf5 {[%clk 0:00:19]} 38. g4 {[%clk 0:00:24]}  Qg6 {[%clk 0:00:11]} 39. fxe5 {[%clk 0:00:24]}  fxe5 {[%clk 0:00:11]} 40. Qxe5 {[%clk 0:00:24]}  Rcd7 {[%clk 0:00:04]} 41. Rxd4 {[%clk 0:00:24]}  Qc2+ {[%clk 0:00:04]} 42. Kg3 {[%clk 0:00:24]}  Kh7 {[%clk 0:00:02]} 43. Be4+ {[%clk 0:00:24]}  Qxe4 {[%clk 0:00:00]} 44. Qxe4+ {[%clk 0:00:25]} 1-0


[Site "https://www.chess.com"]

[Event "Titled Tuesday Blitz July 4 Early 2023"]
[White "Zavgorodniy, Sergiy"]
[Black "Rosh Jain"]
[WhiteFideId "14110148"]
[BlackFideId "25789465"]
[WhiteElo "2560"]
[BlackElo "2369"]
[Result "1-0"]
[Round "8"]
[TimeControl "180+2"]
[Date "2023.07.04"]
[WhiteClock "0:00:16"]
[BlackClock "0:00:28"]
[Board "89"]

1. e4 {[%clk 0:03:00]}  c5 {[%clk 0:02:56]} 2. Nf3 {[%clk 0:03:00]}  d6 {[%clk 0:02:56]} 3. c3 {[%clk 0:02:59]}  Nf6 {[%clk 0:02:56]} 4. Bc4 {[%clk 0:02:59]}  Nbd7 {[%clk 0:02:46]} 5. Qe2 {[%clk 0:02:58]}  g6 {[%clk 0:02:45]} 6. O-O {[%clk 0:02:56]}  Bg7 {[%clk 0:02:46]} 7. d4 {[%clk 0:02:56]}  e5 {[%clk 0:02:43]} 8. dxe5 {[%clk 0:02:54]}  dxe5 {[%clk 0:02:43]} 9. Rd1 {[%clk 0:02:46]}  Qe7 {[%clk 0:02:42]} 10. Nbd2 {[%clk 0:02:37]}  O-O {[%clk 0:02:41]} 11. a4 {[%clk 0:02:32]}  Nb6 {[%clk 0:02:40]} 12. a5 {[%clk 0:02:32]}  Nxc4 {[%clk 0:02:40]} 13. Nxc4 {[%clk 0:02:33]}  Bg4 {[%clk 0:02:38]} 14. Bg5 {[%clk 0:02:29]}  Qe6 {[%clk 0:02:38]} 15. Bxf6 {[%clk 0:02:21]}  Bxf6 {[%clk 0:02:32]} 16. Ne3 {[%clk 0:02:20]}  Bxf3 {[%clk 0:02:31]} 17. Qxf3 {[%clk 0:02:20]}  Rad8 {[%clk 0:02:27]} 18. Nd5 {[%clk 0:02:10]}  Bg5 {[%clk 0:02:27]} 19. Qe2 {[%clk 0:02:06]}  Qc6 {[%clk 0:02:19]} 20. c4 {[%clk 0:02:05]}  h5 {[%clk 0:02:15]} 21. g3 {[%clk 0:02:02]}  Qe6 {[%clk 0:02:12]} 22. h4 {[%clk 0:01:58]}  Be7 {[%clk 0:02:10]} 23. Ra3 {[%clk 0:01:54]}  Bd6 {[%clk 0:02:02]} 24. Rb3 {[%clk 0:01:53]}  Rd7 {[%clk 0:02:01]} 25. Rf3 {[%clk 0:01:52]}  Kg7 {[%clk 0:01:55]} 26. Kg2 {[%clk 0:01:50]}  Rfd8 {[%clk 0:01:52]} 27. Rfd3 {[%clk 0:01:32]}  Kg8 {[%clk 0:01:41]} 28. Qe3 {[%clk 0:01:32]}  Kg7 {[%clk 0:01:41]} 29. Nc3 {[%clk 0:01:32]}  Be7 {[%clk 0:01:37]} 30. Rd5 {[%clk 0:01:28]}  Rxd5 {[%clk 0:01:25]} 31. Rxd5 {[%clk 0:01:25]}  Rxd5 {[%clk 0:01:22]} 32. Nxd5 {[%clk 0:01:26]}  Bd8 {[%clk 0:01:20]} 33. Qxc5 {[%clk 0:01:26]}  a6 {[%clk 0:01:19]} 34. b4 {[%clk 0:01:15]}  Bxh4 {[%clk 0:01:14]} 35. Nc7 {[%clk 0:00:52]}  Qd7 {[%clk 0:01:00]} 36. Qxe5+ {[%clk 0:00:40]}  f6 {[%clk 0:00:56]} 37. Ne8+ {[%clk 0:00:28]}  Kf7 {[%clk 0:00:51]} 38. Nd6+ {[%clk 0:00:27]}  Kg7 {[%clk 0:00:48]} 39. Qd5 {[%clk 0:00:25]}  Qg4 {[%clk 0:00:40]} 40. Qxb7+ {[%clk 0:00:20]}  Kg8 {[%clk 0:00:32]} 41. Qc8+ {[%clk 0:00:19]}  Qxc8 {[%clk 0:00:32]} 42. Nxc8 {[%clk 0:00:20]}  Bg5 {[%clk 0:00:32]} 43. f4 {[%clk 0:00:20]}  Bh6 {[%clk 0:00:31]} 44. b5 {[%clk 0:00:21]}  axb5 {[%clk 0:00:31]} 45. cxb5 {[%clk 0:00:21]}  Bf8 {[%clk 0:00:31]} 46. b6 {[%clk 0:00:20]}  Bc5 {[%clk 0:00:32]} 47. b7 {[%clk 0:00:20]}  Ba7 {[%clk 0:00:32]} 48. Nxa7 {[%clk 0:00:19]}  h4 {[%clk 0:00:31]} 49. b8=Q+ {[%clk 0:00:20]}  Kg7 {[%clk 0:00:31]} 50. Qc7+ {[%clk 0:00:19]}  Kh6 {[%clk 0:00:31]} 51. Nc6 {[%clk 0:00:19]}  g5 {[%clk 0:00:32]} 52. gxh4 {[%clk 0:00:18]}  Kg6 {[%clk 0:00:30]} 53. f5+ {[%clk 0:00:17]}  Kh6 {[%clk 0:00:31]} 54. Qf7 {[%clk 0:00:16]}  g4 {[%clk 0:00:28]} 55. Qg6# {[%clk 0:00:16]} 1-0


[Site "https://www.chess.com"]

[Event "Titled Tuesday Blitz July 4 Early 2023"]
[White "Estrada Nieto, Julian"]
[Black "Mindhunter08"]
[WhiteFideId "5101018"]
[WhiteElo "2558"]
[BlackElo "2327"]
[Result "0-1"]
[Round "8"]
[TimeControl "180+2"]
[Date "2023.07.04"]
[WhiteClock "0:00:00"]
[BlackClock "0:00:05"]
[Board "90"]

1. e4 {[%clk 0:03:00]}  e5 {[%clk 0:03:00]} 2. Nf3 {[%clk 0:03:00]}  Nc6 {[%clk 0:03:00]} 3. Bb5 {[%clk 0:03:00]}  a6 {[%clk 0:02:59]} 4. Bxc6 {[%clk 0:03:01]}  dxc6 {[%clk 0:03:00]} 5. O-O {[%clk 0:03:01]}  f6 {[%clk 0:03:00]} 6. d4 {[%clk 0:03:01]}  Bg4 {[%clk 0:02:59]} 7. c3 {[%clk 0:03:00]}  Bd6 {[%clk 0:02:59]} 8. Be3 {[%clk 0:02:55]}  Ne7 {[%clk 0:02:58]} 9. Nbd2 {[%clk 0:02:55]}  Be6 {[%clk 0:02:45]} 10. dxe5 {[%clk 0:02:45]}  fxe5 {[%clk 0:02:43]} 11. Ng5 {[%clk 0:02:29]}  Qd7 {[%clk 0:02:37]} 12. Nxe6 {[%clk 0:02:27]}  Qxe6 {[%clk 0:02:37]} 13. Qb3 {[%clk 0:02:25]}  Qxb3 {[%clk 0:02:22]} 14. Nxb3 {[%clk 0:02:25]}  b6 {[%clk 0:02:18]} 15. a4 {[%clk 0:02:10]}  a5 {[%clk 0:02:18]} 16. Rad1 {[%clk 0:02:10]}  O-O-O {[%clk 0:02:09]} 17. Nd2 {[%clk 0:01:49]}  Ng6 {[%clk 0:02:09]} 18. Nc4 {[%clk 0:01:48]}  Be7 {[%clk 0:02:08]} 19. g3 {[%clk 0:01:45]}  Rxd1 {[%clk 0:02:08]} 20. Rxd1 {[%clk 0:01:44]}  Rd8 {[%clk 0:02:08]} 21. Rxd8+ {[%clk 0:01:39]}  Bxd8 {[%clk 0:02:08]} 22. f4 {[%clk 0:01:35]}  Bf6 {[%clk 0:02:02]} 23. Kg2 {[%clk 0:01:29]}  Kb7 {[%clk 0:01:50]} 24. Kf3 {[%clk 0:01:15]}  Ka6 {[%clk 0:01:45]} 25. fxe5 {[%clk 0:01:05]}  Bxe5 {[%clk 0:01:28]} 26. Bd4 {[%clk 0:00:49]}  Bxd4 {[%clk 0:01:21]} 27. cxd4 {[%clk 0:00:50]}  b5 {[%clk 0:01:20]} 28. axb5+ {[%clk 0:00:31]}  cxb5 {[%clk 0:01:17]} 29. Nd2 {[%clk 0:00:29]}  Kb6 {[%clk 0:01:13]} 30. e5 {[%clk 0:00:27]}  Kc6 {[%clk 0:01:07]} 31. Ke4 {[%clk 0:00:27]}  Ne7 {[%clk 0:01:07]} 32. Nf3 {[%clk 0:00:17]}  a4 {[%clk 0:01:04]} 33. Kd3 {[%clk 0:00:12]}  Kd5 {[%clk 0:00:58]} 34. Nd2 {[%clk 0:00:11]}  g5 {[%clk 0:00:45]} 35. Nf1 {[%clk 0:00:08]}  b4 {[%clk 0:00:27]} 36. Ne3+ {[%clk 0:00:08]}  Ke6 {[%clk 0:00:27]} 37. Kc4 {[%clk 0:00:07]}  b3 {[%clk 0:00:14]} 38. Kb4 {[%clk 0:00:05]}  Nc6+ {[%clk 0:00:10]} 39. Kxa4 {[%clk 0:00:05]}  Nxd4 {[%clk 0:00:10]} 40. Nc4 {[%clk 0:00:04]}  Kd5 {[%clk 0:00:09]} 41. Nd2 {[%clk 0:00:04]}  Kxe5 {[%clk 0:00:07]} 42. Nxb3 {[%clk 0:00:04]}  Nf3 {[%clk 0:00:08]} 43. Nc5 {[%clk 0:00:04]}  Nxh2 {[%clk 0:00:07]} 44. Kb5 {[%clk 0:00:04]}  Nf1 {[%clk 0:00:07]} 45. g4 {[%clk 0:00:03]}  Kd5 {[%clk 0:00:03]} 46. Nd7 {[%clk 0:00:03]}  c6+ {[%clk 0:00:03]} 47. Kb6 {[%clk 0:00:02]}  Kd6 {[%clk 0:00:04]} 48. Nf6 {[%clk 0:00:02]}  h6 {[%clk 0:00:04]} 49. b4 {[%clk 0:00:02]}  Ne3 {[%clk 0:00:05]} 50. Ng8 {[%clk 0:00:00]}  Nxg4 {[%clk 0:00:05]} 0-1


[Site "https://www.chess.com"]

[Event "Titled Tuesday Blitz July 4 Early 2023"]
[White "Juknis, Paulius"]
[Black "Matinian, Nikita"]
[WhiteFideId "12802247"]
[BlackFideId "24129100"]
[WhiteElo "2352"]
[BlackElo "2697"]
[Result "0-1"]
[Round "8"]
[TimeControl "180+2"]
[Date "2023.07.04"]
[WhiteClock "0:00:39"]
[BlackClock "0:01:54"]
[Board "91"]

1. e4 {[%clk 0:03:00]}  c5 {[%clk 0:02:57]} 2. Nc3 {[%clk 0:03:01]}  d6 {[%clk 0:02:56]} 3. d4 {[%clk 0:03:00]}  cxd4 {[%clk 0:02:57]} 4. Qxd4 {[%clk 0:03:01]}  Nc6 {[%clk 0:02:54]} 5. Qd2 {[%clk 0:03:01]}  g6 {[%clk 0:02:53]} 6. b3 {[%clk 0:03:01]}  Bh6 {[%clk 0:02:53]} 7. f4 {[%clk 0:03:02]}  Nf6 {[%clk 0:02:46]} 8. Bb2 {[%clk 0:02:59]}  e5 {[%clk 0:02:44]} 9. Nb5 {[%clk 0:02:46]}  O-O {[%clk 0:02:43]} 10. Qxd6 {[%clk 0:02:41]}  Bxf4 {[%clk 0:02:21]} 11. Qxd8 {[%clk 0:02:06]}  Rxd8 {[%clk 0:02:20]} 12. Bd3 {[%clk 0:02:03]}  Nb4 {[%clk 0:02:15]} 13. Ke2 {[%clk 0:02:03]}  Bg4+ {[%clk 0:02:10]} 14. Nf3 {[%clk 0:02:02]}  Rac8 {[%clk 0:02:08]} 15. Nxa7 {[%clk 0:01:39]}  Nxd3 {[%clk 0:02:03]} 16. Nxc8 {[%clk 0:01:30]}  Nxb2 {[%clk 0:02:01]} 17. Ne7+ {[%clk 0:01:23]}  Kg7 {[%clk 0:01:59]} 18. Nd5 {[%clk 0:00:42]}  Nxd5 {[%clk 0:01:57]} 19. exd5 {[%clk 0:00:42]}  Rxd5 {[%clk 0:01:58]} 20. h3 {[%clk 0:00:38]}  Rd2+ {[%clk 0:01:57]} 21. Ke1 {[%clk 0:00:38]}  Bxf3 {[%clk 0:01:55]} 22. gxf3 {[%clk 0:00:39]}  Rxc2 {[%clk 0:01:54]} 23. Rc1 {[%clk 0:00:39]} 0-1


[Site "https://www.chess.com"]

[Event "Titled Tuesday Blitz July 4 Early 2023"]
[White "Amburgy, Ryan"]
[Black "robertoalejandro10"]
[WhiteFideId "30924820"]
[WhiteElo "2667"]
[BlackElo "2531"]
[Result "1-0"]
[Round "8"]
[TimeControl "180+2"]
[Date "2023.07.04"]
[WhiteClock "0:00:21"]
[BlackClock "0:00:00"]
[Board "92"]

1. d4 {[%clk 0:03:00]}  Nf6 {[%clk 0:02:58]} 2. c4 {[%clk 0:03:01]}  g6 {[%clk 0:02:58]} 3. Nc3 {[%clk 0:03:01]}  c5 {[%clk 0:02:53]} 4. d5 {[%clk 0:02:56]}  d6 {[%clk 0:02:53]} 5. e4 {[%clk 0:02:56]}  Bg7 {[%clk 0:02:53]} 6. h3 {[%clk 0:02:53]}  O-O {[%clk 0:02:53]} 7. Nf3 {[%clk 0:02:53]}  Na6 {[%clk 0:02:53]} 8. Bd3 {[%clk 0:02:46]}  Nc7 {[%clk 0:02:51]} 9. O-O {[%clk 0:02:45]}  a6 {[%clk 0:02:51]} 10. a4 {[%clk 0:02:45]}  Rb8 {[%clk 0:02:50]} 11. Re1 {[%clk 0:02:38]}  Bd7 {[%clk 0:02:44]} 12. e5 {[%clk 0:02:37]}  Nfe8 {[%clk 0:02:44]} 13. Bg5 {[%clk 0:02:32]}  dxe5 {[%clk 0:02:44]} 14. Ne4 {[%clk 0:02:13]}  b6 {[%clk 0:02:13]} 15. a5 {[%clk 0:02:09]}  f5 {[%clk 0:02:08]} 16. axb6 {[%clk 0:02:09]}  Rxb6 {[%clk 0:01:55]} 17. Nxc5 {[%clk 0:02:10]}  e4 {[%clk 0:01:54]} 18. Bxe4 {[%clk 0:02:07]}  fxe4 {[%clk 0:01:48]} 19. Rxe4 {[%clk 0:02:07]}  Nf6 {[%clk 0:01:46]} 20. Re2 {[%clk 0:02:07]}  h6 {[%clk 0:01:41]} 21. Be3 {[%clk 0:02:05]}  Rb4 {[%clk 0:01:30]} 22. Ne5 {[%clk 0:01:43]}  Be8 {[%clk 0:01:13]} 23. Qd2 {[%clk 0:01:40]}  Rb6 {[%clk 0:00:34]} 24. Bxh6 {[%clk 0:01:36]}  Qd6 {[%clk 0:00:25]} 25. Bxg7 {[%clk 0:01:34]}  Kxg7 {[%clk 0:00:26]} 26. Ned3 {[%clk 0:01:28]}  Bf7 {[%clk 0:00:21]} 27. Qg5 {[%clk 0:01:20]}  Rfb8 {[%clk 0:00:13]} 28. Rae1 {[%clk 0:01:16]}  Re8 {[%clk 0:00:11]} 29. b4 {[%clk 0:01:10]}  Rbb8 {[%clk 0:00:10]} 30. f4 {[%clk 0:00:35]}  Nh7 {[%clk 0:00:04]} 31. Qg4 {[%clk 0:00:32]}  Qf6 {[%clk 0:00:03]} 32. Nd7 {[%clk 0:00:31]}  Qf5 {[%clk 0:00:01]} 33. Qxf5 {[%clk 0:00:30]}  gxf5 {[%clk 0:00:02]} 34. Nxb8 {[%clk 0:00:31]}  Rxb8 {[%clk 0:00:03]} 35. Rxe7 {[%clk 0:00:31]}  Ne8 {[%clk 0:00:03]} 36. c5 {[%clk 0:00:28]}  Nef6 {[%clk 0:00:04]} 37. d6 {[%clk 0:00:28]}  Ne4 {[%clk 0:00:03]} 38. Nf2 {[%clk 0:00:24]}  Nxf2 {[%clk 0:00:03]} 39. Kxf2 {[%clk 0:00:25]}  Kf6 {[%clk 0:00:03]} 40. Rc7 {[%clk 0:00:22]}  Nf8 {[%clk 0:00:03]} 41. d7 {[%clk 0:00:20]}  Rd8 {[%clk 0:00:03]} 42. c6 {[%clk 0:00:21]}  Ne6 {[%clk 0:00:00]} 43. Rc8 {[%clk 0:00:21]} 1-0


[Site "https://www.chess.com"]

[Event "Titled Tuesday Blitz July 4 Early 2023"]
[White "Novik, Maxim"]
[Black "ATM622"]
[WhiteFideId "4102924"]
[WhiteElo "2506"]
[BlackElo "2572"]
[Result "1-0"]
[Round "8"]
[TimeControl "180+2"]
[Date "2023.07.04"]
[WhiteClock "0:01:39"]
[BlackClock "0:00:44"]
[Board "96"]

1. e4 {[%clk 0:03:00]}  c6 {[%clk 0:02:58]} 2. d4 {[%clk 0:03:00]}  d5 {[%clk 0:02:59]} 3. Nc3 {[%clk 0:03:01]}  dxe4 {[%clk 0:02:57]} 4. Nxe4 {[%clk 0:03:01]}  Bf5 {[%clk 0:02:57]} 5. Ng3 {[%clk 0:03:00]}  Bg6 {[%clk 0:02:57]} 6. h4 {[%clk 0:03:00]}  h6 {[%clk 0:02:58]} 7. Nf3 {[%clk 0:02:58]}  Nd7 {[%clk 0:02:57]} 8. h5 {[%clk 0:02:58]}  Bh7 {[%clk 0:02:57]} 9. Bd3 {[%clk 0:02:58]}  Bxd3 {[%clk 0:02:57]} 10. Qxd3 {[%clk 0:02:59]}  Ngf6 {[%clk 0:02:57]} 11. Bd2 {[%clk 0:02:59]}  e6 {[%clk 0:02:58]} 12. O-O-O {[%clk 0:02:58]}  Be7 {[%clk 0:02:57]} 13. Kb1 {[%clk 0:02:54]}  a5 {[%clk 0:02:55]} 14. Ne4 {[%clk 0:02:51]}  Nxe4 {[%clk 0:02:50]} 15. Qxe4 {[%clk 0:02:51]}  Nf6 {[%clk 0:02:44]} 16. Qe2 {[%clk 0:02:51]}  Qd5 {[%clk 0:02:42]} 17. Ne5 {[%clk 0:02:49]}  Qe4 {[%clk 0:02:40]} 18. Be3 {[%clk 0:02:48]}  Nd5 {[%clk 0:02:32]} 19. Qd3 {[%clk 0:02:31]}  Qxd3 {[%clk 0:02:31]} 20. Rxd3 {[%clk 0:02:30]}  Nxe3 {[%clk 0:02:29]} 21. fxe3 {[%clk 0:02:28]}  Bd6 {[%clk 0:02:27]} 22. Nc4 {[%clk 0:02:27]}  Bc7 {[%clk 0:02:25]} 23. a4 {[%clk 0:02:25]}  b5 {[%clk 0:02:24]} 24. axb5 {[%clk 0:02:24]}  cxb5 {[%clk 0:02:24]} 25. Nd2 {[%clk 0:02:24]}  O-O {[%clk 0:02:21]} 26. Ne4 {[%clk 0:02:22]}  Rac8 {[%clk 0:02:18]} 27. c3 {[%clk 0:02:21]}  Bb8 {[%clk 0:02:16]} 28. Rdd1 {[%clk 0:02:19]}  Rfd8 {[%clk 0:02:11]} 29. g4 {[%clk 0:02:15]}  Kf8 {[%clk 0:02:07]} 30. Rhf1 {[%clk 0:02:14]}  Ke7 {[%clk 0:02:06]} 31. Rf3 {[%clk 0:02:13]}  Rf8 {[%clk 0:01:55]} 32. Kc2 {[%clk 0:02:12]}  f5 {[%clk 0:01:53]} 33. gxf5 {[%clk 0:02:10]}  exf5 {[%clk 0:01:51]} 34. Nc5 {[%clk 0:02:03]}  Ba7 {[%clk 0:01:46]} 35. Nd3 {[%clk 0:02:02]}  Kd6 {[%clk 0:01:41]} 36. Rg1 {[%clk 0:02:01]}  Rc7 {[%clk 0:01:37]} 37. Rg6+ {[%clk 0:02:00]}  Kd5 {[%clk 0:01:32]} 38. Nf4+ {[%clk 0:01:48]}  Ke4 {[%clk 0:01:29]} 39. Rf1 {[%clk 0:01:46]}  Re8 {[%clk 0:01:14]} 40. Kd2 {[%clk 0:01:46]}  b4 {[%clk 0:01:12]} 41. Nd3 {[%clk 0:01:44]}  bxc3+ {[%clk 0:01:10]} 42. bxc3 {[%clk 0:01:45]}  Rb8 {[%clk 0:01:09]} 43. Rf4+ {[%clk 0:01:42]}  Kd5 {[%clk 0:01:08]} 44. Rxf5+ {[%clk 0:01:42]}  Kc4 {[%clk 0:01:05]} 45. Rxa5 {[%clk 0:01:38]}  Bb6 {[%clk 0:00:53]} 46. Ne5+ {[%clk 0:01:38]}  Kb3 {[%clk 0:00:44]} 47. Rb5+ {[%clk 0:01:39]} 1-0


[Site "https://www.chess.com"]

[Event "Titled Tuesday Blitz July 4 Early 2023"]
[White "Kovalevsky, Stanislav"]
[Black "Pasti, Aron"]
[WhiteFideId "13508598"]
[BlackFideId "785857"]
[WhiteElo "2488"]
[BlackElo "2568"]
[Result "0-1"]
[Round "8"]
[TimeControl "180+2"]
[Date "2023.07.04"]
[WhiteClock "0:00:00"]
[BlackClock "0:00:06"]
[Board "98"]

1. c4 {[%clk 0:03:00]}  e5 {[%clk 0:03:00]} 2. Nc3 {[%clk 0:02:57]}  Nf6 {[%clk 0:03:00]} 3. g3 {[%clk 0:02:58]}  d5 {[%clk 0:03:00]} 4. cxd5 {[%clk 0:02:59]}  Nxd5 {[%clk 0:03:01]} 5. Bg2 {[%clk 0:02:59]}  Nb6 {[%clk 0:03:01]} 6. e3 {[%clk 0:03:00]}  Qd3 {[%clk 0:03:02]} 7. Nge2 {[%clk 0:02:54]}  Nc6 {[%clk 0:02:58]} 8. O-O {[%clk 0:02:51]}  Bf5 {[%clk 0:02:58]} 9. f4 {[%clk 0:02:51]}  e4 {[%clk 0:02:53]} 10. g4 {[%clk 0:02:35]}  Bxg4 {[%clk 0:02:52]} 11. Bxe4 {[%clk 0:02:35]}  Qd7 {[%clk 0:02:53]} 12. d4 {[%clk 0:02:29]}  O-O-O {[%clk 0:02:53]} 13. a4 {[%clk 0:02:28]}  Re8 {[%clk 0:02:52]} 14. Bg2 {[%clk 0:02:28]}  Nc4 {[%clk 0:02:49]} 15. Qd3 {[%clk 0:02:26]}  Nd6 {[%clk 0:02:36]} 16. e4 {[%clk 0:02:24]}  Nb4 {[%clk 0:02:29]} 17. Qb1 {[%clk 0:02:14]}  f5 {[%clk 0:02:12]} 18. e5 {[%clk 0:02:06]}  Ne4 {[%clk 0:02:05]} 19. Bxe4 {[%clk 0:01:44]}  fxe4 {[%clk 0:02:06]} 20. Qxe4 {[%clk 0:01:44]}  Bf5 {[%clk 0:02:06]} 21. Qf3 {[%clk 0:01:39]}  Nc2 {[%clk 0:02:07]} 22. Be3 {[%clk 0:01:20]}  Nxa1 {[%clk 0:02:07]} 23. Rxa1 {[%clk 0:01:21]}  g5 {[%clk 0:02:04]} 24. fxg5 {[%clk 0:01:11]}  h6 {[%clk 0:02:05]} 25. a5 {[%clk 0:01:09]}  a6 {[%clk 0:02:02]} 26. Nd5 {[%clk 0:01:05]}  Bg4 {[%clk 0:01:41]} 27. Qg2 {[%clk 0:00:34]}  Bh3 {[%clk 0:01:21]} 28. Qe4 {[%clk 0:00:31]}  Qg4+ {[%clk 0:00:51]} 29. Qxg4+ {[%clk 0:00:31]}  Bxg4 {[%clk 0:00:52]} 30. Nf6 {[%clk 0:00:24]}  Rxe5 {[%clk 0:00:45]} 31. dxe5 {[%clk 0:00:14]}  Bxe2 {[%clk 0:00:45]} 32. g6 {[%clk 0:00:14]}  Bd3 {[%clk 0:00:41]} 33. Rd1 {[%clk 0:00:12]}  Bxg6 {[%clk 0:00:40]} 34. Rd7 {[%clk 0:00:12]}  Bf5 {[%clk 0:00:37]} 35. Rd4 {[%clk 0:00:10]}  Be7 {[%clk 0:00:33]} 36. Rf4 {[%clk 0:00:10]}  Be6 {[%clk 0:00:33]} 37. Kf2 {[%clk 0:00:10]}  c5 {[%clk 0:00:28]} 38. Rh4 {[%clk 0:00:08]}  h5 {[%clk 0:00:18]} 39. Rxh5 {[%clk 0:00:08]}  Bxf6 {[%clk 0:00:18]} 40. Rxh8+ {[%clk 0:00:07]}  Bxh8 {[%clk 0:00:18]} 41. Bf4 {[%clk 0:00:07]}  Kd7 {[%clk 0:00:18]} 42. Ke3 {[%clk 0:00:07]}  Kc6 {[%clk 0:00:19]} 43. h4 {[%clk 0:00:06]}  Kd5 {[%clk 0:00:19]} 44. h5 {[%clk 0:00:07]}  Bxe5 {[%clk 0:00:18]} 45. h6 {[%clk 0:00:07]}  Bf5 {[%clk 0:00:17]} 46. Bg5 {[%clk 0:00:04]}  Bh7 {[%clk 0:00:15]} 47. b3 {[%clk 0:00:03]}  Kc6 {[%clk 0:00:12]} 48. Be7 {[%clk 0:00:03]}  Kb5 {[%clk 0:00:12]} 49. Bf8 {[%clk 0:00:03]}  Kb4 {[%clk 0:00:10]} 50. Kd2 {[%clk 0:00:03]}  Kxb3 {[%clk 0:00:10]} 51. Bxc5 {[%clk 0:00:03]}  Bc3+ {[%clk 0:00:07]} 52. Kc1 {[%clk 0:00:03]}  Bxa5 {[%clk 0:00:08]} 53. Bf8 {[%clk 0:00:03]}  Bc3 {[%clk 0:00:08]} 54. Bg7 {[%clk 0:00:02]}  a5 {[%clk 0:00:07]} 55. Bh8 {[%clk 0:00:00]}  Bxh8 {[%clk 0:00:06]} 0-1


[Site "https://www.chess.com"]